bitfinex-derivatives/quotes_SOLF0:USTF0_20240930
["timestamp","ask_amount","ask_price","bid_price","bid_amount"]
[1727730144891,8.83,156.67,156.65,0.12502]
[1727730146287,8.83,156.67,156.65,3.31752]
[1727730146890,8.83,156.67,156.66,3.1924]
[1727730154794,3.1917,156.7,156.67,3.1921]
[1727730154994,8.83,156.68,156.67,3.1921]
[1727730158999,1.2259,156.73,156.65,0.12502]
[1727730159187,48.91906619,156.75,156.67,8.83]
[1727730159493,8.83,156.72,156.67,8.83]
[1727730159698,8.83,156.72,156.67,11.3505]
[1727730160194,8.83,156.72,156.68,8.83]
[1727730161399,8.83,156.72,156.71,3.1914]
[1727730163001,8.83,156.73,156.68,8.83]
[1727730163300,8.83,156.73,156.72,3.1912]
[1727730163902,48.91906619,156.75,156.74,3.1907]
[1727730164402,48.91906619,156.75,156.67,5.73647759]
[1727730164403,8.83,156.76,156.72,8.83]
[1727730164600,8.83,156.76,156.75,3.1905]
[1727730169910,8.83,156.76,156.68,68.94]
[1727730170109,8.83,156.74,156.69,14.86013008]
[1727730170310,8.83,156.74,156.7,6.03013008]
[1727730170606,8.83,156.74,156.69,8.83]
[1727730170811,8.83,156.74,156.7,6.0312694]
[1727730171113,8.83,156.74,156.69,8.83]
[1727730171409,8.83,156.74,156.73,3.1908]
[1727730175915,8.83,156.76,156.74,3.1907]
[1727730180521,8.83,156.75,156.69,6.93110773]
[1727730180723,8.83,156.7,156.67,2.5205]
[1727730180918,8.83,156.7,156.68,6.0404763]
[1727730181115,8.83,156.7,156.69,6.0404763]
[1727730181619,8.83,156.7,156.65,8.95502]
[1727730181826,8.83,156.7,156.67,6.04233181]
[1727730182019,8.83,156.7,156.65,8.95502]
[1727730182323,8.83,156.7,156.69,3.1918]
[1727730185623,8.83,156.7,156.66,1.3277]
[1727730185815,8.83,156.7,156.67,6.04529394]
[1727730186012,8.83,156.7,156.68,6.04529394]
[1727730186221,8.83,156.7,156.66,1.3277]
[1727730186422,8.83,156.7,156.67,6.0455873]
[1727730186621,8.83,156.7,156.68,6.0455873]
[1727730186822,8.83,156.7,156.69,3.1918]
[1727730196228,8.83,156.7,156.69,9.23851092]
[1727730197327,8.83,156.7,156.69,3.1918]
[1727730205236,8.83,156.7,156.69,9.24357212]
[1727730205626,8.83,156.7,156.69,3.1918]
[1727730206333,8.83,156.7,156.69,9.24452155]
[1727730208142,8.83,156.7,156.69,3.1918]
[1727730208439,8.83,156.7,156.69,9.24611461]
[1727730209537,3.1911,156.73,156.69,6.05431461]
[1727730209836,0.12502,156.77,156.7,8.83]
[1727730210134,8.83,156.76,156.74,3.1907]
[1727730212637,8.83,156.76,156.7,8.83]
[1727730212838,8.83,156.76,156.75,3.1905]
[1727730213542,0.12502,156.77,156.72,8.83]
[1727730213744,8.95502,156.77,156.76,3.1903]
[1727730221951,0.12502,156.77,156.76,3.1903]
[1727730227450,0.12502,156.77,156.75,3.1904]
[1727730229857,0.12502,156.77,156.72,12.6313]
[1727730230157,0.12502,156.77,156.73,6.05165592]
[1727730230357,0.12502,156.77,156.74,6.05165592]
[1727730230559,0.12502,156.77,156.72,12.6313]
[1727730230758,0.12502,156.77,156.75,3.1904]
[1727730231059,0.12502,156.77,156.72,12.6313]
[1727730231262,0.12502,156.77,156.76,3.1903]
[1727730248166,3.1903,156.76,156.75,4.77]
[1727730249372,0.12502,156.77,156.68,70.2448]
[1727730249669,3.1911,156.73,156.68,70.2448]
[1727730249869,3.12187504,156.74,156.69,3.1916]
[1727730250070,3.1912,156.72,156.69,3.1916]
[1727730250465,3.1912,156.72,156.7,3.1915]
[1727730251266,3.1912,156.72,156.7,8.3515]
[1727730252567,3.1912,156.72,156.7,5.16]
[1727730254374,3.1912,156.72,156.7,8.3515]
[1727730256078,3.191,156.73,156.7,8.3515]
[1727730260678,3.191,156.73,156.71,3.1913]
[1727730263280,0.12502,156.77,156.72,3.1912]
[1727730263783,3.1907,156.75,156.72,3.1912]
[1727730263982,0.12502,156.77,156.72,3.1912]
[1727730264185,0.12502,156.77,156.7,5.16]
[1727730264483,3.1909,156.74,156.71,3.1913]
[1727730267285,3.1909,156.74,156.72,3.1911]
[1727730267779,3.1914,156.71,156.7,5.16]
[1727730271388,3.18616912,156.72,156.7,5.16]
[1727730271681,3.1913,156.72,156.7,5.16]
[1727730271892,6.41077011,156.72,156.7,5.16]
[1727730272081,3.1913,156.72,156.7,5.16]
[1727730272676,6.38649874,156.72,156.7,5.16]
[1727730272876,3.1913,156.72,156.7,5.16]
[1727730273084,3.12078781,156.73,156.7,5.16]
[1727730273288,0.12502,156.77,156.7,5.16]
[1727730273482,0.12502,156.77,156.71,1.2424]
[1727730273987,0.12502,156.77,156.75,3.1904]
[1727730274687,3.31512,156.77,156.75,3.1904]
[1727730275388,3.31512,156.77,156.75,8.3604]
[1727730280081,3.31512,156.77,156.75,5.17]
[1727730287691,0.12502,156.77,156.75,5.17]
[1727730287891,3.1903,156.76,156.75,5.17]
[1727730298097,3.1912,156.72,156.71,1.2424]
[1727730298293,6.33793249,156.72,156.71,1.2424]
[1727730299398,3.1912,156.72,156.71,1.2424]
[1727730301501,3.16306384,156.74,156.67,3.1921]
[1727730301703,48.91470405,156.75,156.67,3.1921]
[1727730302606,48.91470405,156.75,156.66,2.5736]
[1727730302809,48.91470405,156.75,156.69,3.1916]
[1727730303211,3.1913,156.72,156.69,3.1916]
[1727730303410,6.43918781,156.72,156.69,3.1916]
[1727730303711,3.1913,156.72,156.69,3.1916]
[1727730303911,3.1908,156.74,156.71,3.1912]
[1727730304111,48.91470405,156.75,156.66,2.5736]
[1727730304307,48.91470405,156.75,156.67,13.01301156]
[1727730304512,52.10540405,156.75,156.72,3.191]
[1727730305916,52.10540405,156.75,156.68,6.954856]
[1727730306115,52.10540405,156.75,156.69,6.0579876]
[1727730306319,52.10540405,156.75,156.7,6.0579876]
[1727730306520,52.10540405,156.75,156.72,3.191]
[1727730307016,52.10540405,156.75,156.68,1.2546]
[1727730307218,52.10540405,156.75,156.72,3.191]
[1727730314420,3.1908,156.74,156.71,3.1913]
[1727730315213,48.91470405,156.75,156.71,3.1913]
[1727730315816,3.1908,156.74,156.71,3.1913]
[1727730316621,3.191,156.73,156.71,3.1913]
[1727730322330,3.11679814,156.74,156.68,1.2546]
[1727730322628,48.91470405,156.75,156.69,6.06604519]
[1727730322828,48.91470405,156.75,156.7,6.06604519]
[1727730323028,3.1916,156.7,156.68,4.4464]
[1727730323230,3.1916,156.7,156.69,6.06714777]
[1727730323626,48.91470405,156.75,156.69,6.06714777]
[1727730323930,3.1915,156.71,156.7,6.06714777]
[1727730324831,3.1915,156.71,156.69,3.1917]
[1727730325125,3.1915,156.71,156.7,6.06735671]
[1727730325929,3.2241651,156.72,156.65,0.12502]
[1727730326127,48.91470405,156.75,156.66,6.07077109]
[1727730326529,48.91470405,156.75,156.65,0.12502]
[1727730326828,48.91470405,156.75,156.67,3.192]
[1727730327220,3.1918,156.69,156.67,3.192]
[1727730327421,6.31355314,156.69,156.67,3.192]
[1727730327733,3.1917,156.7,156.65,0.12502]
[1727730328031,3.15943388,156.71,156.68,3.1919]
[1727730328227,3.1913,156.72,156.65,0.12502]
[1727730328532,3.17987088,156.73,156.7,3.1914]
[1727730328731,3.1911,156.73,156.67,1.2715]
[1727730328920,48.91470405,156.75,156.71,3.1912]
[1727730329927,3.1909,156.74,156.71,3.1912]
[1727730330131,3.18222114,156.73,156.71,3.1912]
[1727730331024,6.37322114,156.73,156.71,3.1912]
[1727730331225,3.191,156.73,156.71,3.1912]
[1727730331827,6.46231694,156.73,156.71,3.1912]
[1727730332025,3.191,156.73,156.71,3.1912]
[1727730332630,6.33641956,156.73,156.71,3.1912]
[1727730334133,3.1909,156.74,156.71,3.1912]
[1727730334534,3.17319579,156.74,156.72,3.191]
[1727730335535,6.36399579,156.74,156.72,3.191]
[1727730335936,3.17319579,156.74,156.72,3.191]
[1727730336437,3.17319579,156.74,156.67,2.6077]
[1727730336636,3.17319579,156.74,156.68,13.02611224]
[1727730336937,52.10530405,156.75,156.69,6.06431063]
[1727730337141,48.91470405,156.75,156.74,3.1907]
[1727730337438,48.91470405,156.75,156.67,2.6077]
[1727730337635,48.91470405,156.75,156.73,3.1908]
[1727730338335,52.10540405,156.75,156.72,3.191]
[1727730338928,52.10540405,156.75,156.73,3.1908]
[1727730339235,3.128731,156.74,156.73,3.1908]
[1727730340039,48.91470405,156.75,156.73,3.1908]
[1727730341138,48.91470405,156.75,156.74,3.1907]
[1727730343839,48.91470405,156.75,156.68,15.63233968]
[1727730344141,52.10540405,156.75,156.69,13.01791345]
[1727730344342,52.10540405,156.75,156.7,13.01791345]
[1727730344541,52.10540405,156.75,156.72,3.191]
[1727730347643,52.10540405,156.75,156.68,15.63415999]
[1727730347947,0.12502,156.77,156.73,3.1908]
[1727730348738,3.1905,156.76,156.73,3.1908]
[1727730352940,3.1906,156.75,156.73,3.1908]
[1727730353451,3.1907,156.74,156.72,3.1911]
[1727730356549,0.12502,156.77,156.72,3.1911]
[1727730356746,3.1906,156.75,156.72,3.1911]
[1727730358757,3.1906,156.75,156.73,3.1909]
[1727730359353,3.1904,156.76,156.74,3.1907]
[1727730360150,3.31522,156.77,156.75,3.1905]
[1727730360555,0.12502,156.77,156.67,2.6077]
[1727730360751,3.1907,156.75,156.72,3.1911]
[1727730360957,0.12502,156.77,156.72,3.1911]
[1727730361651,3.1904,156.76,156.72,3.1911]
[1727730361857,0.12502,156.77,156.72,3.1911]
[1727730363254,3.1907,156.75,156.72,3.1911]
[1727730368663,3.1907,156.75,156.67,2.6077]
[1727730368953,0.12502,156.77,156.68,28.70655702]
[1727730369160,0.12502,156.77,156.69,28.70429407]
[1727730369350,0.12502,156.77,156.7,13.04364051]
[1727730369554,0.12502,156.77,156.71,7.4174601]
[1727730369754,0.12502,156.77,156.72,8.6372601]
[1727730369953,0.12502,156.77,156.73,6.07045209]
[1727730370153,0.12502,156.77,156.74,6.07045209]
[1727730370353,0.12502,156.77,156.72,2.5649]
[1727730370552,0.12502,156.77,156.73,6.06873762]
[1727730370755,0.12502,156.77,156.74,6.06873762]
[1727730370960,0.12502,156.77,156.72,2.5649]
[1727730371254,3.15782079,156.82,156.73,13.03480254]
[1727730371463,0.7156,156.86,156.74,6.06829917]
[1727730371759,3.1893,156.81,156.78,3.1898]
[1727730373761,3.39476498,156.83,156.72,2.5649]
[1727730374151,3.1903,156.76,156.74,3.1907]
[1727730374356,3.39476498,156.83,156.72,1.3253]
[1727730374556,0.9690554,156.82,156.72,1.3253]
[1727730374963,3.1908,156.74,156.72,1.3253]
[1727730375863,3.2164333,156.75,156.72,1.3253]
[1727730376055,48.9051524,156.79,156.71,0.12502]
[1727730376056,3.1912,156.72,156.71,0.12502]
[1727730379762,12.0212,156.72,156.71,0.12502]
[1727730384264,3.1912,156.72,156.71,0.12502]
[1727730384564,12.0212,156.72,156.71,0.12502]
[1727730386659,8.83,156.72,156.65,0.12502]
[1727730386856,3.1924,156.66,156.65,0.12502]
[1727730387061,8.83,156.67,156.65,13.17206014]
[1727730387267,8.83,156.67,156.66,6.0739936]
[1727730388153,12.0223,156.67,156.66,6.0739936]
[1727730388964,8.83,156.67,156.65,0.12502]
[1727730389264,3.1924,156.66,156.65,0.12502]
[1727730389469,3.1924,156.66,156.65,6.19646435]
[1727730393568,3.1924,156.66,156.65,6.19306889]
[1727730394457,8.83,156.67,156.65,6.19306889]
[1727730394660,8.83,156.67,156.66,3.1924]
[1727730394855,3.192,156.68,156.66,3.1924]
[1727730395263,8.83,156.67,156.66,3.1924]
[1727730398082,6.50572,156.77,156.66,14.89555745]
[1727730398268,6.50572,156.77,156.67,1.3441]
[1727730398269,8.83,156.71,156.67,1.3441]
[1727730398572,8.83,156.71,156.69,3.1916]
[1727730402770,6.50572,156.77,156.67,2.6566]
[1727730402771,0.12502,156.77,156.67,11.4866]
[1727730402973,8.83,156.71,156.7,3.1916]
[1727730418380,3.1916,156.7,156.68,3.1919]
[1727730418584,3.27108831,156.73,156.68,3.1919]
[1727730418585,8.83,156.69,156.68,3.1919]
[1727730422794,12.0215,156.71,156.69,3.1916]
[1727730423087,12.0215,156.71,156.67,2.6566]
[1727730423088,8.83,156.71,156.67,2.6566]
[1727730423491,8.83,156.71,156.69,3.1916]
[1727730423886,8.83,156.71,156.67,11.4866]
[1727730424286,8.83,156.71,156.68,6.07237796]
[1727730424483,8.83,156.71,156.67,11.4866]
[1727730424690,3.1907,156.74,156.68,14.90311]
[1727730424891,12.0207,156.74,156.69,6.07311]
[1727730425084,8.83,156.74,156.68,8.83]
[1727730425389,8.83,156.74,156.71,3.1912]
[1727730425694,8.83,156.73,156.71,3.1912]
[1727730426588,8.83,156.74,156.73,3.1909]
[1727730427684,8.83,156.74,156.72,3.191]
[1727730429287,3.1904,156.76,156.7,8.83]
[1727730429479,0.12502,156.77,156.71,8.83]
[1727730429680,0.12502,156.77,156.74,8.83]
[1727730429884,0.12502,156.77,156.76,3.1903]
[1727730430691,0.12502,156.77,156.75,3.1905]
[1727730432887,0.12502,156.77,156.74,8.83]
[1727730433094,3.1905,156.76,156.73,4.4675]
[1727730433391,8.83,156.74,156.68,68.96]
[1727730433597,8.83,156.69,156.68,68.96]
[1727730433791,8.83,156.69,156.68,78.2275649]
[1727730434396,8.83,156.69,156.68,72.1519]
[1727730434597,8.83,156.69,156.68,78.22786251]
[1727730435097,8.83,156.69,156.68,72.1519]
[1727730435298,8.83,156.69,156.68,78.22904053]
[1727730436299,8.83,156.69,156.68,9.26904053]
[1727730436503,8.83,156.71,156.68,6.07714053]
[1727730436697,8.83,156.71,156.69,3.1917]
[1727730438098,8.83,156.71,156.66,11.4491]
[1727730438307,3.2343823,156.73,156.7,3.1914]
[1727730438308,3.191,156.73,156.7,3.1914]
[1727730438498,3.1322103,156.75,156.68,8.83]
[1727730438802,8.83,156.73,156.69,8.83]
[1727730439004,8.83,156.73,156.72,3.1912]
[1727730441990,0.12502,156.77,156.71,8.83]
[1727730442193,8.83,156.76,156.74,3.1906]
[1727730443197,12.0205,156.76,156.73,3.1908]
[1727730444606,12.0205,156.76,156.74,3.1907]
[1727730451800,0.12502,156.77,156.76,3.1903]
[1727730480336,0.12502,156.77,156.76,12.0203]
[1727730485442,0.12502,156.77,156.76,18.08250962]
[1727730485642,0.12502,156.77,156.76,6.06220962]
[1727730485836,0.12502,156.77,156.73,10.1618]
[1727730486041,0.12502,156.77,156.74,6.06231908]
[1727730486240,0.12502,156.77,156.74,8.83]
[1727730486633,0.12502,156.77,156.75,8.83]
[1727730487143,0.12502,156.77,156.76,3.1903]
[1727730492341,0.12502,156.95,156.76,15.2104]
[1727730492546,0.12502,156.95,156.86,8.83]
[1727730492741,0.12502,156.95,156.81,68.92]
[1727730492942,3.12174803,156.93,156.82,14.26566283]
[1727730493145,3.12174803,156.93,156.83,13.01276283]
[1727730493349,3.12174803,156.93,156.84,9.1656713]
[1727730493644,3.12174803,156.93,156.85,6.05511436]
[1727730493846,3.12174803,156.93,156.86,6.05511436]
[1727730494143,0.12502,156.95,156.9,145.45236]
[1727730494647,0.12502,156.95,156.94,3.1867]
[1727730495344,0.12502,156.95,156.93,3.1869]
[1727730495740,0.12502,156.95,156.92,68.92]
[1727730496141,0.12502,156.95,156.92,72.1069]
[1727730496348,0.12502,156.95,156.92,68.92]
[1727730497242,0.12502,156.95,156.93,3.1867]
[1727730498541,0.12502,156.95,156.94,3.1867]
[1727730502050,0.12502,156.95,156.88,68.88]
[1727730503457,0.12502,156.95,156.94,3.1867]
[1727730514764,0.12502,157.01,157.0,3.1855]
[1727730515263,0.12502,157.01,156.99,3.1856]
[1727730515459,0.12502,157.01,156.94,1.3393]
[1727730516268,3.31042,157.01,156.98,3.1857]
[1727730516765,0.12502,157.01,156.98,3.1857]
[1727730516960,0.12502,157.01,156.98,4.4757]
[1727730518770,0.12502,157.01,156.98,1.29]
[1727730518971,0.12502,157.01,156.99,3.1856]
[1727730523667,0.12502,157.01,156.99,3.1855]
[1727730524268,0.12502,157.01,157.0,3.1855]
[1727730540782,0.12502,157.01,157.0,4.4755]
[1727730540982,0.12502,157.01,157.0,1.29]
[1727730541280,3.31032,157.01,157.0,1.29]
[1727730550782,0.12502,157.01,156.95,3.1864]
[1727730550986,3.186,156.98,156.95,3.1864]
[1727730551190,3.186,156.98,156.93,68.82]
[1727730551485,3.186,156.98,156.96,3.1863]
[1727730553690,3.186,156.98,156.95,3.1864]
[1727730556192,3.1861,156.97,156.95,3.1864]
[1727730556792,0.12502,157.01,156.91,6.3745]
[1727730557398,3.31042,157.01,156.94,3.1867]
[1727730557690,3.31042,157.01,156.91,6.3745]
[1727730558494,0.12502,157.01,156.91,6.3745]
[1727730558702,3.1855,157.0,156.91,6.3745]
[1727730560498,0.12502,157.01,156.96,3.1862]
[1727730560701,0.12502,157.01,156.9,7.06846026]
[1727730560895,3.1859,156.98,156.95,3.1863]
[1727730562400,0.12502,157.01,156.9,75.88846026]
[1727730562596,0.12502,157.01,156.91,12.93280846]
[1727730562792,0.12502,157.01,156.92,6.02066016]
[1727730562992,3.1864,156.96,156.92,3.1869]
[1727730563393,3.1864,156.96,156.93,6.02257899]
[1727730563699,3.1864,156.96,156.93,3.1868]
[1727730573509,3.1864,156.96,156.94,6.02943414]
[1727730573809,3.1864,156.96,156.93,3.1868]
[1727730574008,3.1864,156.96,156.94,6.02942642]
[1727730574208,3.1864,156.96,156.93,3.1868]
[1727730574513,3.1864,156.96,156.94,6.03012153]
[1727730574806,144.1864,156.96,156.93,3.1868]
[1727730575005,144.1864,156.96,156.94,6.03008073]
[1727730575204,144.1864,156.96,156.93,3.1868]
[1727730575404,144.1864,156.96,156.94,6.03067247]
[1727730575609,144.1864,156.96,156.93,3.1868]
[1727730575806,144.1864,156.96,156.94,6.0306682]
[1727730576109,144.1864,156.96,156.93,3.1868]
[1727730576310,144.1864,156.96,156.94,6.03072311]
[1727730576612,144.1864,156.96,156.93,3.1868]
[1727730576910,144.1864,156.96,156.94,6.03106361]
[1727730577111,144.1864,156.96,156.93,3.1868]
[1727730577312,3.1865,156.95,156.94,6.0311127]
[1727730577507,3.1865,156.95,156.93,3.1868]
[1727730577809,3.1865,156.95,156.94,6.03140147]
[1727730578005,3.1865,156.95,156.93,3.1868]
[1727730578906,3.1865,156.95,156.92,3.187]
[1727730579108,3.1865,156.95,156.93,6.03436419]
[1727730579410,3.1865,156.95,156.92,3.187]
[1727730579608,3.1865,156.95,156.93,6.0348952]
[1727730579811,141.0,156.96,156.9,2.5216]
[1727730580013,141.0,156.96,156.91,12.96375398]
[1727730580208,141.0,156.96,156.92,6.03509159]
[1727730580413,141.0,156.96,156.89,0.12502]
[1727730580608,141.0,156.96,156.9,12.96293382]
[1727730580804,141.0,156.96,156.91,6.03451489]
[1727730581005,141.0,156.96,156.92,6.03451489]
[1727730581205,141.0,156.96,156.89,0.12502]
[1727730581408,141.0,156.96,156.9,12.96373965]
[1727730581603,3.187,156.93,156.91,6.03507852]
[1727730581807,3.187,156.93,156.9,3.1875]
[1727730582009,3.187,156.93,156.91,6.03626503]
[1727730582311,141.0,156.96,156.89,0.12502]
[1727730582614,141.0,156.96,156.9,6.0363013]
[1727730582910,141.0,156.96,156.91,6.0363013]
[1727730583117,3.1873,156.91,156.89,0.12502]
[1727730583309,3.1873,156.91,156.9,6.03600448]
[1727730583515,141.0,156.96,156.9,6.03600448]
[1727730583708,141.0,156.96,156.89,3.31262]
[1727730583909,141.0,156.96,156.9,6.03590351]
[1727730584210,3.1871,156.92,156.91,6.03590351]
[1727730584516,3.1871,156.92,156.89,3.31262]
[1727730584816,3.1871,156.92,156.9,6.03498848]
[1727730585016,3.1871,156.92,156.89,3.31262]
[1727730585315,3.1871,156.92,156.9,6.03504853]
[1727730585508,3.1871,156.92,156.89,3.31262]
[1727730585704,3.1871,156.92,156.9,6.03710046]
[1727730585908,3.1871,156.92,156.89,3.31262]
[1727730586113,3.1871,156.92,156.9,6.03911718]
[1727730586315,3.1871,156.92,156.89,3.31262]
[1727730586512,3.1871,156.92,156.9,6.0390482]
[1727730586815,3.1871,156.92,156.89,3.31262]
[1727730587017,3.1871,156.92,156.9,6.03956481]
[1727730587210,3.1871,156.92,156.89,3.31262]
[1727730587410,3.1871,156.92,156.9,6.03872845]
[1727730587609,3.1871,156.92,156.89,3.31262]
[1727730587811,3.1871,156.92,156.9,6.03859003]
[1727730588013,3.1871,156.92,156.89,3.31262]
[1727730588310,3.1871,156.92,156.9,6.03857614]
[1727730588610,3.1871,156.92,156.89,3.31262]
[1727730588810,3.1871,156.92,156.9,6.03770964]
[1727730589109,3.1871,156.92,156.89,3.31262]
[1727730594809,3.1875,156.9,156.89,0.12502]
[1727730599520,6.39254285,156.9,156.89,0.12502]
[1727730610328,6.39254285,156.9,156.83,0.12502]
[1727730610329,3.1887,156.84,156.83,0.12502]
[1727730612622,1.3203,156.88,156.83,0.12502]
[1727730613228,3.20766057,156.87,156.83,0.12502]
[1727730613430,3.1886,156.85,156.83,3.31382]
[1727730613830,3.20766057,156.87,156.83,0.12502]
[1727730614020,3.1887,156.84,156.83,0.12502]
[1727730624251,3.20766057,156.87,156.83,0.12502]
[1727730625052,3.1887,156.85,156.83,0.12502]
[1727730627049,3.1887,156.84,156.83,0.12502]
[1727730627440,3.1886,156.85,156.83,0.12502]
[1727730627644,3.1886,156.85,156.83,3.31392]
[1727730629349,3.1886,156.85,156.83,0.12502]
[1727730633548,3.1887,156.84,156.83,0.12502]
[1727730633743,3.20766057,156.87,156.77,6.88145707]
[1727730633948,1.3203,156.88,156.78,6.00609534]
[1727730634143,141.0,156.87,156.78,3.1898]
[1727730634845,3.1894,156.81,156.79,3.1897]
[1727730637354,3.1894,156.81,156.78,3.1898]
[1727730641154,3.1894,156.81,156.77,0.12502]
[1727730641358,3.1892,156.82,156.79,3.1897]
[1727730642152,3.1892,156.82,156.8,3.1895]
[1727730644156,3.1892,156.82,156.79,3.1896]
[1727730646352,3.1892,156.82,156.8,3.1895]
[1727730651864,141.0,156.81,156.8,3.1895]
[1727730652063,141.0,156.81,156.8,9.21115869]
[1727730658068,3.189,156.83,156.8,9.21115869]
[1727730658270,3.189,156.83,156.81,6.02165869]
[1727730658466,3.189,156.83,156.8,3.1895]
[1727730658666,3.189,156.83,156.81,6.02920006]
[1727730658866,3.189,156.83,156.8,3.1895]
[1727730659165,3.189,156.83,156.81,6.02924613]
[1727730659371,3.189,156.83,156.8,3.1895]
[1727730659571,3.189,156.83,156.81,6.03068835]
[1727730659865,3.189,156.83,156.8,3.1895]
[1727730660065,3.189,156.83,156.81,6.03064237]
[1727730660265,3.189,156.83,156.8,3.1895]
[1727730660465,3.189,156.83,156.81,6.03216406]
[1727730660660,141.0,156.83,156.77,0.12502]
[1727730660869,141.0,156.83,156.78,6.03446909]
[1727730661068,1.2724,156.82,156.77,0.12502]
[1727730661774,3.1899,156.78,156.77,0.12502]
[1727730663969,144.1899,156.78,156.75,3.1904]
[1727730665172,144.1899,156.78,156.76,3.1903]
[1727730665867,141.0,156.78,156.71,0.12502]
[1727730666066,3.1901,156.77,156.75,3.1905]
[1727730666764,144.1901,156.77,156.71,0.12502]
[1727730666965,3.8357,156.76,156.65,0.12502]
[1727730667269,3.1913,156.72,156.69,3.1916]
[1727730667469,141.0,156.75,156.65,0.12502]
[1727730667673,141.0,156.75,156.66,4.48895615]
[1727730667973,3.1913,156.72,156.68,3.1918]
[1727730668363,141.0,156.75,156.65,0.12502]
[1727730668669,3.1915,156.71,156.67,3.1921]
[1727730669169,3.1915,156.71,156.65,0.12502]
[1727730669170,3.1919,156.69,156.65,3.31752]
[1727730669373,141.0,156.68,156.65,0.12502]
[1727730670975,141.0,156.68,156.6,4.48345517]
[1727730671272,141.0,156.68,156.59,5.86637517]
[1727730671469,3.1925,156.66,156.62,3.1931]
[1727730671670,141.0,156.66,156.59,1.38292]
[1727730671869,141.0,156.68,156.59,1.38292]
[1727730672175,141.0,156.68,156.6,3.1935]
[1727730673376,141.0,156.68,156.59,1.38292]
[1727730674375,141.0,156.68,156.62,3.1931]
[1727730675674,141.0,156.67,156.62,3.1931]
[1727730676375,144.26095228,156.67,156.62,3.1931]
[1727730679277,3.1926,156.65,156.62,3.1931]
[1727730679678,3.1926,156.65,156.59,1.38292]
[1727730679679,144.26095228,156.67,156.63,3.1928]
[1727730680075,144.26095228,156.67,156.59,1.38292]
[1727730680282,144.26095228,156.67,156.62,3.1932]
[1727730681673,141.0,156.66,156.62,3.1932]
[1727730681979,141.0,156.66,156.59,1.38292]
[1727730682383,141.0,156.66,156.61,3.1934]
[1727730682578,141.0,156.66,156.59,1.38292]
[1727730683780,141.0,156.66,156.63,3.1929]
[1727730684178,141.0,156.66,156.59,1.38292]
[1727730686379,141.0,156.66,156.64,3.1927]
[1727730686981,141.0,156.66,156.65,3.1926]
[1727730687484,3.24308047,156.69,156.65,3.1926]
[1727730688778,3.24308047,156.69,156.59,1.38292]
[1727730689179,3.24308047,156.69,156.65,3.1925]
[1727730690680,3.192,156.68,156.65,3.1925]
[1727730691187,1.2465,156.7,156.65,3.1925]
[1727730692186,1.2465,156.7,156.66,3.1923]
[1727730692988,3.1919,156.69,156.66,3.1923]
[1727730693489,144.1919,156.69,156.66,3.1923]
[1727730694589,144.1919,156.69,156.66,3.1922]
[1727730694888,141.0,156.69,156.59,1.38292]
[1727730695284,141.0,156.69,156.66,3.1922]
[1727730695677,144.21360555,156.69,156.59,0.12502]
[1727730695881,3.1927,156.65,156.59,0.12502]
[1727730696086,2.5497,156.68,156.59,0.12502]
[1727730696482,3.1925,156.66,156.63,3.193]
[1727730698289,2.5497,156.68,156.62,3.1931]
[1727730698491,2.5497,156.68,156.59,0.12502]
[1727730699291,141.0,156.67,156.63,3.193]
[1727730702293,141.0,156.67,156.61,3.1933]